fUSD/lending_fUSD_20241225
["ID","MTS","AMOUNT","RATE_DAILY","PERIOD"]
[346603869,1735124014171,-2339.81,0.00011289,2]
[346603870,1735124014180,-500.0,0.00011289,2]
[346603871,1735124014191,-1694.59,0.00011289,2]
[346603872,1735124014201,-500.0,0.00011289,2]
[346603873,1735124014210,-865.12,0.00011289,2]
[346603874,1735124014220,-1519.96,0.00011289,2]
[346603875,1735124014229,-2752.14,0.00011289,2]
[346603876,1735124014238,-1184.21,0.00011289,2]
[346603877,1735124014248,-501.18,0.00011289,2]
[346603878,1735124014257,-1007.58,0.00011289,2]
[346603879,1735124014267,-1068.96,0.00011289,2]
[346603880,1735124014276,-1364.22,0.00011289,2]
[346603881,1735124014286,-843.54,0.00011289,2]
[346603882,1735124014295,-1314.59,0.00011289,2]
[346603883,1735124014304,-2665.45,0.00011289,2]
[346603884,1735124014314,-2254.43,0.00011289,2]
[346603885,1735124014323,-2868.91,0.00011289,2]
[346603886,1735124014333,-500.0,0.00011289,2]
[346603887,1735124014343,-500.0,0.00011289,2]
[346603888,1735124014353,-961.77,0.00011289,2]
[346603889,1735124014363,-500.0,0.00011289,2]
[346603890,1735124014372,-2900.38,0.00011289,2]
[346603891,1735124014381,-3691.38,0.00011289,2]
[346603892,1735124014391,-992.97,0.00011289,2]
[346603893,1735124014401,-500.0,0.00011289,2]
[346603894,1735124014410,-500.0,0.00011289,2]
[346603895,1735124014421,-1365.06,0.00011289,2]
[346603896,1735124014431,-500.0,0.00011289,2]
[346603897,1735124014441,-500.0,0.00011289,2]
[346603898,1735124014451,-500.0,0.00011289,2]
[346603899,1735124014463,-657.14,0.00011289,2]
[346603900,1735124014473,-592.61,0.00011289,2]
[346603901,1735124014483,-1250.87,0.00011289,2]
[346603902,1735124014492,-1651.28,0.00011289,2]
[346603903,1735124014505,-1475.81,0.00011289,2]
[346603904,1735124014515,-500.0,0.00011289,2]
[346603905,1735124014525,-500.0,0.00011289,2]
[346603906,1735124014534,-500.0,0.00011289,2]
[346603907,1735124014543,-185.6,0.00011289,2]
[346603908,1735124014552,-500.0,0.00011289,2]
[346603909,1735124014562,-1768.15,0.00011289,2]
[346603910,1735124014571,-949.41,0.00011289,2]
[346603911,1735124014582,-500.0,0.00011289,2]
[346603912,1735124014592,-615.43,0.00011289,2]
[346603913,1735124014602,-1213.62,0.00011289,2]
[346603914,1735124014612,-1216.96,0.00011289,2]
[346603915,1735124014622,-755.99,0.00011289,2]
[346603916,1735124014631,-500.0,0.00011289,2]
[346603917,1735124014640,-500.0,0.00011289,2]
[346603918,1735124014649,-1085.17,0.00011289,2]
[346603919,1735124014659,-491.32201713,0.00011289,2]
[346603920,1735124014669,-1510.59,0.00011289,2]
[346603921,1735124014678,-1431.46,0.00011289,2]
[346603922,1735124014688,-500.0,0.00011289,2]
[346603923,1735124014697,-1328.84,0.00011289,2]
[346603924,1735124014707,-2700.17,0.00011289,2]
[346603925,1735124014716,-2119.65,0.00011289,2]
[346603926,1735124014725,-950.7,0.00011289,2]
[346603927,1735124014735,-1406.12,0.00011289,2]
[346603928,1735124014744,-500.0,0.00011289,2]
[346603929,1735124014754,-2748.42,0.00011289,2]
[346603930,1735124014764,-2591.44,0.00011289,2]
[346603931,1735124014773,-538.6,0.00011289,2]
[346603932,1735124014782,-500.0,0.00011289,2]
[346603933,1735124014792,-500.0,0.00011289,2]
[346603934,1735124014802,-670.11,0.00011289,2]
[346603935,1735124014811,-657.2,0.00011289,2]
[346603936,1735124014821,-500.0,0.00011289,2]
[346603937,1735124014830,-588.69841293,0.00011289,2]
[346603938,1735124014839,-1236.04,0.00011289,2]
[346603939,1735124014849,-672.78,0.00011289,2]
[346603940,1735124014858,-782.37,0.0001129,2]
[346603941,1735124014868,-853.27,0.0001129,2]
[346603942,1735124014878,-500.0,0.0001129,2]
[346603943,1735124014887,-566.1,0.0001129,2]
[346603944,1735124014897,-1123.54,0.0001129,2]
[346603945,1735124014907,-500.0,0.0001129,2]
[346603946,1735124014917,-500.0,0.0001129,2]
[346603947,1735124014927,-500.0,0.0001129,2]
[346603948,1735124014936,-500.0,0.0001129,2]
[346603949,1735124014945,-540.29,0.0001129,2]
[346603950,1735124014955,-500.0,0.0001129,2]
[346603951,1735124014965,-910.07,0.0001129,2]
[346603952,1735124014974,-1034.43,0.0001129,2]
[346603953,1735124014984,-701.77,0.0001129,2]
[346603954,1735124014994,-500.0,0.0001129,2]
[346603955,1735124015005,-500.0,0.0001129,2]
[346603956,1735124015014,-500.0,0.0001129,2]
[346603957,1735124015024,-500.0,0.0001129,2]
[346603958,1735124015033,-593.72,0.0001129,2]
[346603959,1735124015043,-823.23,0.0001129,2]
[346603960,1735124015052,-561.91,0.0001129,2]
[346603961,1735124015062,-803.22,0.0001129,2]
[346603962,1735124015071,-769.08,0.0001129,2]
[346603963,1735124015082,-505.89,0.0001129,2]
[346603964,1735124015091,-519.4,0.0001129,2]
[346603965,1735124015101,-500.0,0.0001129,2]
[346603966,1735124015111,-500.0,0.0001129,2]
[346603967,1735124015121,-1047.69,0.0001129,2]
[346603968,1735124015131,-500.0,0.0001129,2]
[346603969,1735124015141,-795.42,0.0001129,2]
[346603970,1735124015151,-500.0,0.0001129,2]
[346603971,1735124015160,-500.0,0.0001129,2]
[346603972,1735124015170,-791.77,0.0001129,2]
[346603973,1735124015180,-761.95,0.0001129,2]
[346603974,1735124015189,-764.41,0.0001129,2]
[346603975,1735124015200,-668.48,0.0001129,2]
[346603976,1735124015209,-537.41,0.0001129,2]
[346603977,1735124015219,-1164.9,0.0001129,2]
[346603978,1735124015228,-500.0,0.0001129,2]
[346603979,1735124015238,-560.33,0.0001129,2]
[346603980,1735124015247,-500.0,0.0001129,2]
[346603981,1735124015257,-634.6,0.0001129,2]
[346603982,1735124015266,-1047.44,0.0001129,2]
[346603983,1735124015276,-500.0,0.0001129,2]
[346603984,1735124015286,-500.0,0.0001129,2]
[346603985,1735124015296,-1008.99,0.0001129,2]
[346603986,1735124015306,-566.07,0.0001129,2]
[346603987,1735124015316,-1350.23,0.0001129,2]
[346603988,1735124015325,-500.0,0.0001129,2]
[346603989,1735124015336,-436.48,0.0001137,2]
[346603990,1735124015346,-391.32,0.0001137,2]
[346603991,1735124015355,-528.04,0.00011414,2]
[346603992,1735124015365,-709.41,0.00011425,2]
[346603993,1735124015374,-2110.0,0.0001149,2]
[346603994,1735124015384,-429.10429252,0.00011497,2]
[346603995,1735124015393,-816.35,0.00011499,2]
[346603996,1735124015403,-2751.0,0.00011507,2]
[346603997,1735124015413,-500.0,0.00011561,2]
[346603998,1735124015426,-500.0,0.00011561,2]
[346603999,1735124015436,-500.0,0.00011561,2]
[346604000,1735124015446,-629.82,0.00011561,2]
[346604001,1735124015455,-500.0,0.00011561,2]
[346604002,1735124015467,-500.0,0.00011561,2]
[346604003,1735124015476,-500.0,0.00011561,2]
[346604004,1735124015486,-500.0,0.00011561,2]
[346604005,1735124015496,-500.0,0.00011561,2]
[346604006,1735124015505,-500.0,0.00011561,2]
[346604007,1735124015516,-500.0,0.00011561,2]
[346604008,1735124015526,-500.0,0.00011561,2]
[346604009,1735124015537,-641.52,0.00011561,2]
[346604010,1735124015546,-500.0,0.00011561,2]
[346604011,1735124015556,-2052.61,0.00011561,2]
[346604012,1735124015566,-500.0,0.00011561,2]
[346604013,1735124015575,-500.0,0.00011561,2]
[346604014,1735124015586,-724.12,0.00011561,2]
[346604015,1735124015596,-2612.7,0.00011561,2]
[346604016,1735124015607,-2106.94,0.00011561,2]
[346604017,1735124015616,-500.0,0.00011561,2]
[346604018,1735124015626,-500.0,0.00011561,2]
[346604019,1735124015636,-2120.8,0.00011561,2]
[346604020,1735124015645,-500.0,0.00011561,2]
[346604021,1735124015655,-500.0,0.00011561,2]
[346604022,1735124015665,-8111.62,0.00011561,2]
[346604023,1735124015675,-561.14,0.00011561,2]
[346604024,1735124015685,-500.0,0.00011561,2]
[346604025,1735124015694,-13374.8,0.00011561,2]
[346604026,1735124015704,-895.0,0.00011561,2]
[346604027,1735124015714,-500.0,0.00011561,2]
[346604028,1735124015725,-1080.93,0.00011561,2]
[346604029,1735124015735,-500.0,0.00011561,2]
[346604030,1735124015745,-500.0,0.00011561,2]
[346604031,1735124015754,-2415.95,0.00011561,2]
[346604032,1735124015764,-1459.4,0.00011561,2]
[346604033,1735124015773,-500.0,0.00011561,2]
[346604034,1735124015783,-750.12,0.00011561,2]
[346604035,1735124015793,-500.0,0.00011561,2]
[346604036,1735124015803,-503.84,0.00011561,2]
[346604037,1735124015813,-500.0,0.00011561,2]
[346604038,1735124015823,-597.35,0.00011561,2]
[346604039,1735124015833,-3125.5,0.00011561,2]
[346604040,1735124015845,-500.0,0.00011561,2]
[346604041,1735124015855,-9740.89,0.00011561,2]
[346604042,1735124015866,-1791.37,0.00011561,2]
[346604043,1735124015876,-544.59,0.00011561,2]
[346604044,1735124015886,-500.0,0.00011561,2]
[346604045,1735124015896,-1480.26,0.00011561,2]
[346604046,1735124015906,-2382.39,0.00011561,2]
[346604047,1735124015916,-545.41,0.00011561,2]
[346604048,1735124015926,-3850.84,0.00011561,2]
[346604049,1735124015936,-500.0,0.00011561,2]
[346604050,1735124015946,-3099.01,0.00011561,2]
[346604051,1735124015956,-1251.08,0.00011561,2]
[346604052,1735124015966,-500.0,0.00011561,2]
[346604053,1735124015976,-1210.33,0.00011561,2]
[346604054,1735124015985,-1763.17,0.00011561,2]
[346604055,1735124015995,-500.0,0.00011561,2]
[346604056,1735124016004,-2069.22,0.00011561,2]
[346604057,1735124016014,-500.0,0.00011561,2]
[346604058,1735124016024,-500.0,0.00011561,2]
[346604059,1735124016035,-3442.62,0.00011561,2]
[346604060,1735124016044,-3116.27,0.00011561,2]
[346604061,1735124016054,-1686.02,0.00011561,2]
[346604062,1735124016064,-504.43,0.00011561,2]
[346604063,1735124016073,-500.0,0.00011561,2]
[346604064,1735124016084,-969.87,0.00011561,2]
[346604065,1735124016094,-999.27,0.00011561,2]
[346604066,1735124016104,-917.88,0.00011561,2]
[346604067,1735124016114,-500.0,0.00011561,2]
[346604068,1735124016125,-680.31,0.00011561,2]
[346604069,1735124016135,-500.0,0.00011561,2]
[346604070,1735124016145,-2615.45,0.00011561,2]
[346604071,1735124016155,-500.0,0.00011561,2]
[346604072,1735124016165,-500.0,0.00011561,2]
[346604073,1735124016175,-1076.21,0.00011561,2]
[346604074,1735124016184,-1287.66,0.00011561,2]
[346604075,1735124016194,-518.82,0.00011561,2]
[346604076,1735124016204,-1147.79,0.00011561,2]
[346604077,1735124016213,-500.0,0.00011561,2]
[346604078,1735124016223,-500.0,0.00011561,2]
[346604079,1735124016234,-500.0,0.00011561,2]
[346604080,1735124016244,-729.57,0.00011561,2]
[346604081,1735124016254,-500.0,0.00011561,2]
[346604082,1735124016264,-164.676109,0.00011562,2]
[346604083,1735124016274,-1502.38284,0.00011562,2]
[346604084,1735124016284,-1533.855269,0.00011562,2]
[346604085,1735124016294,-500.0,0.00011562,2]
[346604086,1735124016304,-500.0,0.00011562,2]
[346604087,1735124016314,-177.1792,0.00011562,2]
[346604088,1735124016324,-676.89,0.00011562,2]
[346604089,1735124016334,-716.47,0.00011562,2]
[346604090,1735124016344,-551.85,0.00011562,2]
[346604091,1735124016354,-1052.78,0.00011562,2]
[346604092,1735124016363,-500.0,0.00011562,2]
[346604093,1735124016373,-732.02,0.00011562,2]
[346604094,1735124016383,-805.02,0.00011562,2]
[346604095,1735124016392,-697.15,0.00011562,2]
[346604096,1735124016402,-697.0,0.00011562,2]
[346604097,1735124016413,-539.3,0.00011562,2]
[346604098,1735124016427,-500.0,0.00011562,2]
[346604099,1735124016437,-500.0,0.00011562,2]
[346604100,1735124016447,-745.04,0.00011562,2]
[346604101,1735124016458,-500.0,0.00011562,2]
[346604102,1735124016468,-500.0,0.00011562,2]
[346604103,1735124016478,-903.2,0.00011562,2]
[346604104,1735124016487,-721.38,0.00011562,2]
[346604105,1735124016498,-723.99,0.00011562,2]
[346604106,1735124016509,-500.0,0.00011562,2]
[346604107,1735124016520,-709.41,0.00011562,2]
[346604108,1735124016530,-705.13,0.00011562,2]
[346604109,1735124016540,-500.0,0.00011562,2]
[346604110,1735124016550,-500.0,0.00011562,2]
[346604111,1735124016561,-500.0,0.00011562,2]
[346604112,1735124016571,-500.0,0.00011562,2]
[346604113,1735124016582,-500.0,0.00011562,2]
[346604114,1735124016592,-1131.98,0.00011562,2]
[346604115,1735124016602,-500.0,0.00011562,2]
[346604116,1735124016612,-725.62,0.00011562,2]
[346604117,1735124016622,-525.72,0.00011562,2]
[346604118,1735124016632,-500.0,0.00011562,2]
[346604119,1735124016642,-500.0,0.00011562,2]
[346604120,1735124016652,-730.72,0.00011562,2]
[346604121,1735124016662,-1070.9,0.00011562,2]
[346604122,1735124016672,-500.0,0.00011562,2]
[346604123,1735124016682,-562.56,0.00011562,2]
[346604124,1735124016692,-500.0,0.00011562,2]
[346604125,1735124016701,-1292.9,0.00011562,2]
[346604126,1735124016712,-564.45,0.00011562,2]
[346604127,1735124016722,-500.0,0.00011562,2]
[346604128,1735124016733,-1241.48,0.00011562,2]
[346604129,1735124016744,-926.32,0.00011562,2]
[346604130,1735124016754,-500.0,0.00011562,2]
[346604131,1735124016764,-685.43,0.00011562,2]
[346604132,1735124016774,-672.86,0.00011562,2]
[346604133,1735124016784,-500.0,0.00011562,2]
[346604134,1735124016795,-626.83,0.00011562,2]
[346604135,1735124016806,-1345.93,0.00011562,2]
[346604136,1735124016817,-1089.7,0.00011562,2]
[346604137,1735124016827,-500.0,0.00011562,2]
[346604138,1735124016842,-716.6,0.00011562,2]
[346604139,1735124016854,-7883.29,0.00011562,2]
[346604140,1735124016864,-1161.29,0.00011562,2]
[346604141,1735124016875,-1171.55,0.00011562,2]
[346604142,1735124016885,-801.16,0.00011562,2]
[346604143,1735124016895,-1215.48,0.00011562,2]
[346604144,1735124016906,-1150.96,0.00011562,2]
[346604145,1735124016916,-2469.89,0.00011562,2]
[346604146,1735124016927,-1114.57,0.00011562,2]
[346604147,1735124016937,-1787.54,0.00011562,2]
[346604148,1735124016948,-500.0,0.00011562,2]
[346604149,1735124016958,-2092.13,0.00011562,2]
[346604150,1735124016969,-5306.62,0.00011562,2]
[346604151,1735124016979,-2238.42,0.00011562,2]
[346604152,1735124016990,-847.89,0.00011562,2]
[346604153,1735124017000,-3139.07,0.00011562,2]
[346604154,1735124017010,-697.89,0.00011562,2]
[346604155,1735124017020,-1511.98,0.00011562,2]
[346604156,1735124017030,-3688.36,0.00011562,2]
[346604157,1735124017041,-1406.27,0.00011562,2]
[346604158,1735124017052,-2495.17,0.00011562,2]
[346604159,1735124017062,-849.55,0.00011562,2]
[346604160,1735124017072,-6914.7,0.00011562,2]
[346604161,1735124017085,-4144.9,0.00011562,2]
[346604162,1735124017096,-874.8,0.00011562,2]
[346604163,1735124017106,-7260.01,0.00011562,2]
[346604164,1735124017115,-1306.54,0.00011562,2]
[346604165,1735124017126,-1206.36,0.00011562,2]
[346604166,1735124017136,-1168.17,0.00011562,2]
[346604167,1735124017146,-2349.99,0.00011562,2]
[346604168,1735124017156,-1438.68,0.00011562,2]
[346604169,1735124017166,-43437.81,0.00011562,2]
[346604170,1735124017176,-1131.56,0.00011562,2]
[346604171,1735124017186,-1311.66,0.00011562,2]
[346604172,1735124017196,-2124.98,0.00011562,2]
[346604173,1735124017207,-10367.98,0.00011562,2]
[346604174,1735124017216,-856.68,0.00011562,2]
[346604175,1735124017226,-1105.62,0.00011562,2]
[346604176,1735124017236,-2001.96,0.00011562,2]
[346604177,1735124017246,-5827.41,0.00011562,2]
[346604178,1735124017256,-1216.4,0.00011562,2]
[346604179,1735124017266,-2998.6,0.00011562,2]
[346604180,1735124017277,-3041.71,0.00011562,2]
[346604181,1735124017287,-1530.99,0.00011562,2]
[346604182,1735124017297,-4055.75,0.00011562,2]
[346604183,1735124017307,-569.6,0.00011562,2]
[346604184,1735124017318,-1056.71,0.00011562,2]
[346604185,1735124017520,-7602.77,0.00011562,2]
[346604186,1735124017530,-1793.63,0.00011562,2]
[346604187,1735124017539,-3754.5,0.00011562,2]
[346604188,1735124017548,-500.0,0.00011562,2]
[346604189,1735124017557,-2035.37,0.00011562,2]
[346604190,1735124017567,-8203.8,0.00011562,2]
[346604191,1735124017576,-5375.49,0.00011562,2]
[346604192,1735124017589,-1968.75,0.00011562,2]
[346604193,1735124017599,-3917.65,0.00011562,2]
[346604194,1735124017608,-3799.95,0.00011562,2]
[346604195,1735124017618,-4323.49,0.00011562,2]
[346604196,1735124017627,-773.92,0.00011562,2]
[346604197,1735124017637,-5058.49,0.00011562,2]
[346604198,1735124017646,-5283.4,0.00011562,2]
[346604199,1735124017656,-40377.0,0.00011562,2]
[346604200,1735124017665,-1690.11,0.00011562,2]
[346604201,1735124017675,-1222.02,0.00011562,2]
[346604202,1735124017684,-3469.7,0.00011562,2]
[346604203,1735124017694,-4268.74,0.00011562,2]
[346604204,1735124017703,-1352.45,0.00011562,2]
[346604205,1735124017713,-3931.78,0.00011562,2]
[346604206,1735124017722,-1434.48,0.00011562,2]
[346604207,1735124017732,-6377.29,0.00011562,2]
[346604208,1735124017741,-1871.58,0.00011562,2]
[346604209,1735124017750,-4300.66,0.00011562,2]
[346604210,1735124017759,-1079.58,0.00011562,2]
[346604211,1735124017769,-2002.26,0.00011562,2]
[346604212,1735124017778,-556.9,0.00011562,2]
[346604213,1735124017788,-1374.95,0.00011562,2]
[346604214,1735124017797,-687.76,0.00011562,2]
[346604215,1735124017807,-7255.37,0.00011562,2]
[346604216,1735124017816,-975.22,0.00011562,2]
[346604217,1735124017826,-1373.89,0.00011562,2]
[346604218,1735124017837,-5580.34,0.00011562,2]
[346604219,1735124017847,-1241.75,0.00011562,2]
[346604220,1735124017856,-1282.83,0.00011562,2]
[346604221,1735124017865,-346.46367886,0.00011562,2]
[346604222,1735124017875,-206.63577924,0.00011563,2]
[346604223,1735124017884,-590.03,0.00011563,2]
[346604224,1735124017893,-500.0,0.00011563,2]
[346604225,1735124017903,-536.84,0.00011563,2]
[346604226,1735124017912,-500.0,0.00011563,2]
[346604227,1735124017921,-500.0,0.00011563,2]
[346604228,1735124017931,-500.0,0.00011563,2]
[346604229,1735124017940,-500.0,0.00011563,2]
[346604230,1735124017949,-500.0,0.00011563,2]
[346604231,1735124017961,-889.26,0.00011563,2]
[346604232,1735124017970,-500.0,0.00011563,2]
[346604233,1735124017980,-623.26,0.00011563,2]
[346604234,1735124017989,-727.06,0.00011563,2]
[346604235,1735124017998,-500.0,0.00011563,2]
[346604236,1735124018008,-500.0,0.00011563,2]
[346604237,1735124018018,-528.94,0.00011563,2]
[346604238,1735124018027,-654.6,0.00011563,2]
[346604239,1735124018036,-855.2,0.00011563,2]
[346604240,1735124018047,-500.0,0.00011563,2]
[346604241,1735124018056,-550.85,0.00011563,2]
[346604242,1735124018066,-500.0,0.00011563,2]
[346604243,1735124018075,-500.0,0.00011563,2]
[346604244,1735124018086,-577.68,0.00011563,2]
[346604245,1735124018096,-558.83,0.00011563,2]
[346604246,1735124018105,-523.37,0.00011563,2]
[346604247,1735124018115,-500.0,0.00011563,2]
[346604248,1735124018124,-514.4,0.00011563,2]
[346604249,1735124018133,-500.0,0.00011563,2]
[346604250,1735124018143,-516.39,0.00011563,2]
[346604251,1735124018152,-500.0,0.00011563,2]
[346604252,1735124018162,-500.0,0.00011563,2]
[346604253,1735124018174,-500.0,0.00011563,2]
[346604254,1735124018183,-1019.21,0.00011563,2]
[346604255,1735124018193,-758.05,0.00011563,2]
[346604256,1735124018202,-578.92,0.00011563,2]
[346604257,1735124018211,-500.0,0.00011563,2]
[346604258,1735124018220,-533.72,0.00011563,2]
[346604259,1735124018230,-500.0,0.00011563,2]
[346604260,1735124018239,-500.0,0.00011563,2]
[346604261,1735124018248,-500.0,0.00011563,2]
[346604262,1735124018257,-500.0,0.00011563,2]
[346604263,1735124018266,-500.0,0.00011563,2]
[346604264,1735124018276,-500.0,0.00011563,2]
[346604265,1735124018285,-680.69,0.00011563,2]
[346604266,1735124018294,-500.0,0.00011563,2]
[346604267,1735124018303,-500.0,0.00011563,2]
[346604268,1735124018312,-500.0,0.00011563,2]
[346604269,1735124018322,-500.0,0.00011563,2]
[346604270,1735124018332,-500.0,0.00011563,2]
[346604271,1735124018342,-500.0,0.00011563,2]
[346604272,1735124018351,-899.01,0.00011563,2]
[346604273,1735124018361,-500.0,0.00011563,2]
[346604274,1735124018370,-500.0,0.00011563,2]
[346604275,1735124018379,-500.0,0.00011563,2]
[346604276,1735124018389,-648.85062937,0.00011563,2]
[346604277,1735124018398,-1128.34,0.00011563,2]
[346604278,1735124018407,-500.0,0.00011563,2]
[346604279,1735124018419,-861.77,0.00011563,2]
[346604280,1735124018429,-664.24,0.00011563,2]
[346604281,1735124018438,-500.0,0.00011563,2]
[346604282,1735124018448,-500.0,0.00011563,2]
[346604283,1735124018459,-1651.33,0.00011563,2]
[346604284,1735124018468,-595.16,0.00011563,2]
[346604285,1735124018478,-1183.03,0.00011563,2]
[346604286,1735124018487,-500.0,0.00011563,2]
[346604287,1735124018498,-741.31,0.00011563,2]
[346604288,1735124018508,-473.34413308,0.00011563,2]
[346604289,1735124018517,-1297.69,0.00011563,2]
[346604290,1735124018526,-2725.44,0.00011563,2]
[346604291,1735124018536,-1159.71,0.00011563,2]
[346604292,1735124018545,-1142.25,0.00011563,2]
[346604293,1735124018555,-1427.37,0.00011563,2]
[346604294,1735124018564,-507.68,0.00011563,2]
[346604295,1735124018573,-812.86,0.00011563,2]
[346604296,1735124018585,-500.0,0.00011563,2]
[346604297,1735124018594,-500.0,0.00011563,2]
[346604298,1735124018603,-1108.97,0.00011563,2]
[346604299,1735124018613,-757.33,0.00011563,2]
[346604300,1735124018622,-500.0,0.00011563,2]
[346604301,1735124018632,-1679.76,0.00011563,2]
[346604302,1735124018641,-670.49,0.00011563,2]
[346604303,1735124018650,-643.17995591,0.00011563,2]
[346604304,1735124018659,-500.0,0.00011563,2]
[346604305,1735124018668,-673.55,0.00011563,2]
[346604306,1735124018678,-500.0,0.00011563,2]
[346604307,1735124018687,-500.0,0.00011563,2]
[346604308,1735124018696,-881.61,0.00011563,2]
[346604309,1735124018706,-659.9,0.00011563,2]
[346604310,1735124018715,-500.0,0.00011563,2]
[346604311,1735124018724,-500.0,0.00011563,2]
[346604312,1735124018734,-500.0,0.00011563,2]
[346604313,1735124018743,-1334.65,0.00011563,2]
[346604314,1735124018752,-809.37,0.00011563,2]
[346604315,1735124018762,-500.0,0.00011563,2]
[346604316,1735124018772,-500.0,0.00011563,2]
[346604317,1735124018781,-1767.33,0.00011563,2]
[346604318,1735124018791,-606.64,0.00011563,2]
[346604319,1735124018799,-500.0,0.00011563,2]
[346604320,1735124018809,-500.0,0.00011563,2]
[346604321,1735124018818,-1307.03,0.00011563,2]
[346604322,1735124018828,-1231.6,0.00011563,2]
[346604323,1735124018840,-500.0,0.00011563,2]
[346604324,1735124018850,-500.0,0.00011563,2]
[346604325,1735124018860,-687.97,0.00011563,2]
[346604326,1735124018869,-552.67,0.00011563,2]
[346604327,1735124018879,-500.0,0.00011563,2]
[346604328,1735124018888,-1249.86,0.00011563,2]
[346604329,1735124018898,-196.02,0.00011563,2]
[346604330,1735124018907,-1284.88,0.00011563,2]
[346604331,1735124018916,-1100.64,0.00011563,2]
[346604332,1735124018925,-500.0,0.00011563,2]
[346604333,1735124018935,-850.42,0.00011563,2]
[346604334,1735124018945,-500.0,0.00011563,2]
[346604335,1735124018955,-500.0,0.00011563,2]
[346604336,1735124018964,-994.82,0.00011563,2]
[346604337,1735124018974,-500.0,0.00011563,2]
[346604338,1735124018983,-1496.34,0.00011563,2]
[346604339,1735124018992,-817.31,0.00011563,2]
[346604340,1735124019001,-712.14,0.00011563,2]
[346604341,1735124019011,-1209.55,0.00011563,2]
[346604342,1735124019020,-151.69871502,0.00011563,2]
[346604343,1735124019030,-1201.37,0.00011563,2]
[346604344,1735124019040,-500.0,0.00011563,2]
[346604345,1735124019050,-513.01,0.00011563,2]
[346604346,1735124019060,-564.37,0.00011563,2]
[346604347,1735124019069,-1231.95,0.00011563,2]
[346604348,1735124019080,-1142.83,0.00011563,2]
[346604349,1735124019091,-770.51,0.00011563,2]
[346604350,1735124019102,-548.91,0.00011563,2]
[346604351,1735124019112,-1081.6,0.00011563,2]
[346604352,1735124019122,-1858.46,0.00011563,2]
[346604353,1735124019132,-500.0,0.00011563,2]
[346604354,1735124019142,-500.0,0.00011563,2]
[346604355,1735124019151,-1306.98,0.00011563,2]
[346604356,1735124019160,-500.0,0.00011563,2]
[346604357,1735124019170,-500.0,0.00011563,2]
[346604358,1735124019179,-2452.91,0.00011563,2]
[346604359,1735124019188,-1048.75,0.00011563,2]
[346604360,1735124019197,-1263.71,0.00011563,2]
[346604361,1735124019207,-500.0,0.00011563,2]
[346604362,1735124019216,-604.41,0.00011563,2]
[346604363,1735124019225,-500.0,0.00011563,2]
[346604364,1735124019236,-1520.77,0.00011563,2]
[346604365,1735124019245,-1970.0,0.00011563,2]
[346604366,1735124019255,-823.95,0.00011563,2]
[346604367,1735124019264,-500.0,0.00011563,2]
[346604368,1735124019274,-500.0,0.00011563,2]